lending/lending_fUSD_20240604
["ID","MTS","AMOUNT","RATE_DAILY","PERIOD"]
[328501056,1717467045132,-161.78,0.0002589,2]
[328501057,1717467045142,-1400.0,0.000259,9]
[328501058,1717467045152,-23507.2236463,0.00026,5]
[328501059,1717467045163,-151.0,0.00026,7]
[328501060,1717467045172,-151.0,0.00026,7]
[328501061,1717467045182,-195.069437,0.00026,7]
[328501062,1717467045192,-195.069437,0.00026,7]
[328501063,1717467045202,-5477.577591,0.00026009,2]
[328501064,1717467045212,-2298.029728,0.00026009,2]
[328501065,1717467045222,-1532.01982,0.00026009,2]
[328501066,1717467045231,-584.109165,0.00026009,2]
[328501067,1717467045241,-156.591518,0.00026245,7]
[328501068,1717467045251,-183.839117,0.00026245,7]
[328501069,1717467045261,-159.491001,0.00026245,7]
[328501070,1717467045271,-151.0,0.00026245,7]
[328501071,1717467045281,-151.0,0.00026245,7]
[328501072,1717467045291,-305.368604,0.00026245,7]
[328501073,1717467045300,-305.368604,0.00026245,7]
[328501074,1717467045310,-272.32492983,0.00026245,7]
[328501075,1717467045320,-151.0,0.00026245,7]
[328501076,1717467045329,-151.0,0.00026245,7]
[328501077,1717467045339,-151.0,0.00026245,7]
[328501078,1717467045349,-150.0,0.000263,5]
[328501079,1717467045358,-12426.57,0.00026301,2]
[328501080,1717467045368,-11000.87716484,0.00026322,2]
[328501081,1717467045378,-5477.577591,0.00026327,2]
[328501082,1717467045387,-2298.029728,0.00026327,2]
[328501083,1717467045396,-1532.01982,0.00026327,2]
[328501084,1717467045406,-584.109165,0.00026327,2]
[328501085,1717467045416,-151.0,0.00026327,7]
[328501087,1717467045425,-2054.22929284,0.000266,2]
[328501088,1717467045434,-752.62,0.000266,2]
[328501089,1717467045445,-889.92,0.000266,2]
[328501090,1717467045455,-496.89,0.00026632,2]
[328501091,1717467045464,-5477.577591,0.00026644,2]
[328501092,1717467045474,-2298.029728,0.00026644,2]
[328501093,1717467045483,-1532.01982,0.00026644,2]
[328501094,1717467045492,-584.109165,0.00026644,2]
[328501095,1717467045502,-150.0,0.000268,5]
[328501096,1717467045511,-442.0,0.000269,5]
[328501097,1717467045521,-158.703238,0.00026912,7]
[328501098,1717467045531,-6715.37381236,0.00026991,2]
[328501099,1717467045540,-4019.70433189,0.00027,2]
[328501100,1717467045550,-155.91051025,0.00027,4]
[328501101,1717467045561,-1300.0,0.00027,2]
[328501102,1717467045571,-200.593281,0.00027,2]
[328501103,1717467045580,-151.0,0.00027168,5]
[328501104,1717467045590,-400.0,0.00027197,2]
[328501105,1717467045599,-166.56017299,0.00027233,2]
[328501106,1717467045608,-150.0,0.000273,5]
[328501107,1717467045618,-805.91709047,0.0002739,2]
[328501108,1717467045627,-350.46872477,0.00027397,2]
[328501109,1717467045638,-211.322499,0.00027397,2]
[328501110,1717467045649,-211.322499,0.00027397,2]
[328501111,1717467045659,-151.0,0.00027397,7]
[328501112,1717467045668,-151.0,0.00027397,7]
[328501113,1717467045679,-191.508578,0.00027397,7]
[328501114,1717467045689,-151.0,0.00027397,7]
[328501116,1717467045698,-191.508578,0.00027397,7]
[328501118,1717467045708,-152.620136,0.00027397,7]
[328501139,1717467045901,-151.0,0.00027397,7]
[328501141,1717467045910,-150.0,0.00027397,2]
[328501143,1717467045920,-151.0,0.00027397,7]
[328501145,1717467045929,-151.0,0.00027397,7]
[328501147,1717467045939,-151.0,0.00027397,7]
[328501149,1717467045948,-151.0,0.00027397,7]
[328501151,1717467045958,-151.0,0.00027397,7]
[328501153,1717467045967,-152.59571,0.00027397,7]
[328501155,1717467045976,-151.0,0.00027397,7]
[328501156,1717467045986,-151.0,0.00027397,7]
[328501158,1717467045996,-152.752928,0.00027397,7]
[328501160,1717467046006,-190.516526,0.00027397,7]
[328501162,1717467046015,-151.0,0.00027397,7]
[328501164,1717467046024,-151.0,0.00027397,7]
[328501166,1717467046033,-151.0,0.00027397,7]
[328501168,1717467046042,-151.0,0.00027397,7]
[328501170,1717467046051,-151.0,0.00027397,7]
[328501171,1717467046061,-151.0,0.00027397,7]
[328501172,1717467046070,-151.0,0.00027397,7]
[328501173,1717467046079,-165.915395,0.00027397,7]
[328501175,1717467046088,-192.174074,0.00027397,7]
[328501177,1717467046097,-192.174074,0.00027397,7]
[328501179,1717467046106,-192.174074,0.00027397,7]
[328501181,1717467046115,-192.174074,0.00027397,7]
[328501183,1717467046124,-192.174074,0.00027397,7]
[328501185,1717467046133,-192.174074,0.00027397,7]
[328501187,1717467046143,-192.174074,0.00027397,7]
[328501189,1717467046152,-192.174074,0.00027397,7]
[328501190,1717467046163,-1173.27,0.00027397,2]
[328501192,1717467046172,-15876.94,0.00027397,2]
[328501195,1717467046182,-903.99,0.00027397,10]
[328501197,1717467046191,-300.0,0.00027397,10]
[328501198,1717467046200,-300.0,0.00027397,10]
[328501201,1717467046211,-1619.6,0.000274,2]
[328501203,1717467046220,-1619.6,0.000274,2]
[328501205,1717467046231,-1619.6,0.000274,2]
[328501206,1717467046240,-1619.6,0.000274,2]
[328501208,1717467046249,-1619.6,0.000274,2]
[328501210,1717467046258,-1619.6,0.000274,2]
[328501212,1717467046267,-1619.6,0.000274,2]
[328501214,1717467046276,-1619.6,0.000274,2]
[328501216,1717467046285,-1619.6,0.000274,2]
[328501218,1717467046293,-1619.6,0.000274,2]
[328501220,1717467046303,-150.0,0.00027534,2]
[328501222,1717467046312,-1803.50259873,0.000276,2]
[328501224,1717467046322,-1500.0,0.00027633,2]
[328501226,1717467046332,-150.0,0.00027671,2]
[328501228,1717467046342,-1510.05216244,0.000277,2]
[328501230,1717467046352,-2995.362,0.00027737,2]
[328501232,1717467046361,-161.58682684,0.00027737,2]
[328501234,1717467046370,-152.270777,0.00027808,7]
[328501236,1717467046379,-150.0,0.00027808,2]
[328501238,1717467046388,-151.0,0.00027808,7]
[328501241,1717467046406,-151.0,0.00027808,7]
[328501243,1717467046416,-151.0,0.00027808,7]
[328501245,1717467046426,-151.0,0.00027808,7]
[328501247,1717467046436,-152.443071,0.00027808,7]
[328501250,1717467046445,-300.0,0.00027836,10]
[328501252,1717467046454,-302.97219613,0.00027836,10]
[328501254,1717467046465,-151.0,0.00027837,7]
[328501256,1717467046475,-215.060619,0.00027837,7]
[328501257,1717467046484,-195.069437,0.00027837,7]
[328501259,1717467046493,-195.069437,0.00027837,7]
[328501262,1717467046503,-263.89078819,0.00027837,2]
[328501264,1717467046513,-752.62,0.000279,2]
[328501266,1717467046522,-889.92,0.000279,2]
[328501268,1717467046532,-150.0,0.00027945,2]
[328501270,1717467046542,-552.59669848,0.00028011,2]
[328501272,1717467046551,-153.84110613,0.00028082,2]
[328501273,1717467046560,-2068.00502376,0.000281,2]
[328501276,1717467046570,-151.0,0.00028111,7]
[328501277,1717467046580,-154.011487,0.00028111,7]
[328501278,1717467046589,-305.368604,0.00028111,7]
[328501279,1717467046598,-305.368604,0.00028111,7]
[328501281,1717467046607,-151.0,0.00028111,7]
[328501283,1717467046617,-151.0,0.00028111,7]
[328501285,1717467046626,-151.0,0.00028111,7]
[328501288,1717467046639,-281.326473,0.00028111,7]
[328501290,1717467046651,-11000.87716484,0.00028111,2]
[328501292,1717467046662,-300.0,0.000282,2]
[328501294,1717467046671,-1500.0,0.00028214,2]
[328501296,1717467046682,-169.26450609,0.00028309,2]
[328501298,1717467046691,-151.0,0.00028318,7]
[328501300,1717467046701,-152.82,0.00028356,2]
[328501302,1717467046711,-1029.62538655,0.00028369,2]
[328501304,1717467046723,-150.05389773,0.00028376,2]
[328501306,1717467046734,-285.43657222,0.00028398,5]
[328501308,1717467046744,-1500.0,0.00028435,2]
[328501310,1717467046753,-6715.37381236,0.00028445,2]
[328501312,1717467046763,-1500.0,0.00028467,2]
[328501314,1717467046772,-1304.12267965,0.00028498,2]
[328501316,1717467046781,-150.05389773,0.00028513,2]
[328501318,1717467046790,-300.0,0.00028571,2]
[328501320,1717467046800,-545.0,0.00028576,2]
[328501322,1717467046810,-156.01339151,0.00028591,2]
[328501324,1717467046819,-164.76438699,0.00028609,2]
[328501326,1717467046829,-154.28148844,0.00028627,2]
[328501328,1717467046838,-1500.0,0.0002867,2]
[328501330,1717467046847,-166.27330855,0.00028684,2]
[328501332,1717467046856,-151.0,0.00028701,7]
[328501334,1717467046866,-192.51778351,0.00028735,2]
[328501336,1717467046875,-154.94053538,0.0002874,2]
[328501338,1717467046884,-11646.93992559,0.000288,2]
[328501339,1717467046893,-157.18277023,0.00028829,2]
[328501340,1717467046902,-788.08887434,0.0002888,2]
[328501341,1717467046911,-1198.07049462,0.0002888,2]
[328501342,1717467046921,-190.48539046,0.0002888,2]
[328501343,1717467046930,-496.89,0.00028896,2]
[328501344,1717467046939,-1500.0,0.00028896,2]
[328501345,1717467046950,-151.0,0.00028896,4]
[328501346,1717467046960,-155.69934649,0.00028912,2]
[328501347,1717467046969,-300.0,0.00028942,2]
[328501348,1717467046978,-169.26450609,0.00028946,2]
[328501349,1717467046988,-552.59669846,0.00028956,2]
[328501350,1717467047000,-176.65180271,0.00028968,2]
[328501351,1717467047010,-300.0,0.00028979,10]
[328501352,1717467047020,-60232.58484754,0.0002898,2]
[328501353,1717467047029,-211.322499,0.0002898,2]
[328501354,1717467047039,-211.322499,0.0002898,2]
[328501355,1717467047048,-151.0,0.0002898,7]
[328501356,1717467047058,-157.9084,0.0002898,7]
[328501357,1717467047067,-191.508578,0.0002898,7]
[328501358,1717467047076,-159.462673,0.0002898,7]
[328501359,1717467047085,-191.508578,0.0002898,7]
[328501360,1717467047094,-151.0,0.0002898,7]
[328501361,1717467047104,-151.0,0.0002898,7]
[328501362,1717467047113,-151.0,0.0002898,7]
[328501363,1717467047122,-151.0,0.0002898,7]
[328501364,1717467047131,-151.0,0.0002898,7]
[328501365,1717467047140,-151.0,0.0002898,7]
[328501366,1717467047149,-151.0,0.0002898,7]
[328501367,1717467047158,-151.0,0.0002898,7]
[328501368,1717467047167,-151.0,0.0002898,7]
[328501369,1717467047176,-192.174074,0.0002898,7]
[328501370,1717467047185,-192.174074,0.0002898,7]
[328501371,1717467047194,-151.0,0.0002898,7]
[328501372,1717467047203,-151.0,0.0002898,7]
[328501373,1717467047212,-151.0,0.0002898,7]
[328501374,1717467047221,-151.0,0.0002898,7]
[328501375,1717467047231,-150.05389773,0.00028988,2]
[328501376,1717467047241,-209.00664283,0.0002899,7]
[328501377,1717467047251,-200.0,0.0002899,7]
[328501378,1717467047261,-150.05389773,0.00028994,2]
[328501379,1717467047270,-300.0,0.00028999,10]
[328501380,1717467047281,-150.0,0.00028999,2]
[328501381,1717467047291,-5000.0,0.00029,2]
[328501382,1717467047302,-2697.42562907,0.00029,2]
[328501383,1717467047312,-155.78339065,0.00029,7]
[328501384,1717467047322,-1486.96558484,0.00029,2]
[328501385,1717467047332,-500000.0,0.00029,2]
[328501386,1717467047341,-1350.0,0.00029,2]
[328501387,1717467047351,-211.322499,0.00029,2]
[328501388,1717467047361,-211.322499,0.00029,2]
[328501389,1717467047371,-752.62,0.00029,2]
[328501390,1717467047380,-889.92,0.00029,2]
[328501391,1717467047392,-151.0,0.00029,7]
[328501392,1717467047404,-191.508578,0.00029,7]
[328501393,1717467047415,-191.508578,0.00029,7]
[328501394,1717467047425,-151.0,0.00029,7]
[328501395,1717467047434,-151.0,0.00029,7]
[328501396,1717467047444,-151.0,0.00029,7]
[328501397,1717467047455,-151.0,0.00029,7]
[328501398,1717467047465,-151.0,0.00029,7]
[328501399,1717467047475,-151.0,0.00029,7]
[328501400,1717467047484,-151.0,0.00029,7]
[328501401,1717467047493,-151.0,0.00029,7]
[328501402,1717467047502,-151.0,0.00029,7]
[328501403,1717467047511,-192.174074,0.00029,7]
[328501404,1717467047520,-192.174074,0.00029,7]
[328501405,1717467047529,-151.0,0.00029,7]
[328501406,1717467047539,-151.0,0.00029,7]
[328501407,1717467047548,-151.0,0.00029,7]
[328501408,1717467047557,-151.0,0.00029,7]
[328501409,1717467047566,-200.0,0.00029,2]
[328501410,1717467047576,-151.0,0.00029,7]
[328501411,1717467047585,-3000.0,0.00029,2]
[328501412,1717467047594,-305.368604,0.00029,7]
[328501413,1717467047603,-305.368604,0.00029,7]
[328501414,1717467047612,-161.658909,0.00029,7]
[328501415,1717467047621,-151.0,0.00029,7]
[328501416,1717467047630,-151.0,0.00029,7]
[328501417,1717467047644,-151.0,0.00029,7]
[328501418,1717467047654,-195.069437,0.00029,7]
[328501419,1717467047664,-195.069437,0.00029,7]
[328501420,1717467047674,-2068.00502375,0.00029,2]
[328501421,1717467047684,-281.326473,0.00029,7]
[328501422,1717467047694,-152.0,0.00029023,3]
[328501423,1717467047704,-150.0,0.00029034,2]
[328501424,1717467047717,-150.0,0.00029056,2]
[328501425,1717467047726,-150.0,0.00029066,2]
[328501426,1717467047735,-150.0,0.0002908,2]
[328501427,1717467047744,-150.0,0.00029083,2]
[328501428,1717467047754,-1500.0,0.00029095,2]
[328501429,1717467047763,-626.67335723,0.000291,2]
[328501430,1717467047771,-150.0,0.00029122,2]
[328501431,1717467047781,-150.0,0.00029123,2]
[328501432,1717467047790,-5046.00802616,0.0002913,10]
[328501433,1717467047799,-150.05389773,0.00029132,2]
[328501434,1717467047809,-285.4365722,0.00029149,5]
[328501435,1717467047818,-150.0,0.00029151,2]
[328501436,1717467047827,-1500.0,0.00029155,2]
[328501437,1717467047836,-150.0,0.00029174,2]
[328501438,1717467047845,-155.36910388,0.00029187,2]
[328501439,1717467047855,-500.0,0.000292,2]
[328501440,1717467047864,-1500.0,0.00029203,2]
[328501441,1717467047873,-150.0,0.00029222,2]
[328501442,1717467047883,-1500.0,0.00029249,2]
[328501443,1717467047892,-1500.0,0.00029256,2]
[328501444,1717467047902,-150.0,0.00029294,2]
[328501445,1717467047911,-500.0,0.000293,2]
[328501446,1717467047920,-1700.0,0.000293,10]
[328501447,1717467047930,-300.0,0.00029313,2]
[328501448,1717467047940,-1500.0,0.00029322,2]
[328501449,1717467047950,-150.0,0.00029347,2]
[328501450,1717467047960,-166.27330855,0.00029351,2]
[328501451,1717467047970,-150.0,0.00029356,2]
[328501452,1717467047978,-150.0,0.0002937,2]
[328501453,1717467047988,-470.37461345,0.00029375,2]
[328501454,1717467047998,-788.08887434,0.0002939,2]
[328501455,1717467048007,-1198.0704946,0.0002939,2]
[328501456,1717467048016,-150.0,0.00029399,2]
[328501457,1717467048025,-500.0,0.000294,2]
[328501458,1717467048034,-300.0,0.000294,10]
[328501459,1717467048043,-293.52,0.00029426,7]
[328501460,1717467048052,-153.0,0.00029426,7]
[328501461,1717467048061,-158.05,0.00029426,7]
[328501462,1717467048070,-1500.0,0.00029438,2]
[328501463,1717467048080,-150.0,0.0002948,2]
[328501464,1717467048089,-151.0,0.00029486,2]
[328501465,1717467048099,-225.80800784,0.000295,3]
[328501466,1717467048110,-500.0,0.000295,2]
[328501467,1717467048119,-4756.730444,0.000295,2]
[328501468,1717467048129,-300.0,0.000295,10]
[328501469,1717467048138,-150.0,0.00029503,2]
[328501470,1717467048292,-1500.0,0.00029523,2]
[328501471,1717467048302,-150.05389773,0.00029558,2]
[328501472,1717467048312,-150.0,0.00029563,2]
[328501473,1717467048321,-500.0,0.000296,2]
[328501474,1717467048330,-300.0,0.000296,10]
[328501475,1717467048340,-150.0,0.000296,2]
[328501476,1717467048349,-150.0,0.00029612,2]
[328501477,1717467048358,-150.0,0.00029631,2]
[328501478,1717467048367,-166.66666666,0.0002964,2]
[328501479,1717467048376,-150.0,0.0002967,2]
[328501480,1717467048385,-150.0,0.00029682,2]
[328501481,1717467048394,-300.0,0.00029684,2]
[328501482,1717467048404,-500.0,0.000297,2]
[328501483,1717467048413,-300.0,0.000297,10]
[328501484,1717467048422,-150.05389773,0.00029739,2]
[328501485,1717467048432,-150.05389773,0.00029755,2]
[328501486,1717467048441,-150.0,0.00029774,2]
[328501487,1717467048451,-150.0,0.00029787,2]
[328501488,1717467048461,-166.27330855,0.00029796,2]
[328501489,1717467048471,-500.0,0.000298,2]
[328501490,1717467048480,-7135.095666,0.000298,2]
[328501491,1717467048490,-710.0,0.000298,10]
[328501492,1717467048500,-150.0,0.00029801,2]
[328501493,1717467048509,-150.0,0.00029825,2]
[328501494,1717467048518,-150.0,0.00029827,2]
[328501495,1717467048527,-150.05389773,0.00029831,2]
[328501496,1717467048537,-150.0,0.0002985,2]
[328501497,1717467048547,-150.0,0.00029862,2]
[328501498,1717467048556,-150.0,0.00029887,2]
[328501499,1717467048565,-153.91259116,0.00029897,2]
[328501500,1717467048575,-2829.07869221,0.000299,2]
[328501501,1717467048584,-2007.84808752,0.000299,2]
[328501502,1717467048593,-500.0,0.000299,2]
[328501503,1717467048602,-6715.37381236,0.000299,2]
[328501504,1717467048611,-161.58682683,0.000299,2]
[328501505,1717467048619,-11000.87716484,0.000299,2]
[328501506,1717467048628,-166.56017299,0.000299,2]
[328501507,1717467048641,-1803.50259873,0.000299,2]
[328501508,1717467048650,-285.4365722,0.000299,5]
[328501509,1717467048659,-2068.00502375,0.000299,2]
[328501510,1717467048667,-328.05311544,0.000299,2]
[328501511,1717467048676,-150.0,0.00029929,2]
[328501512,1717467048687,-150.0,0.0002993,2]
[328501513,1717467048695,-1500.0,0.00029937,2]
[328501514,1717467048705,-169.26450609,0.00029943,2]
[328501515,1717467048717,-150.0,0.00029947,2]
[328501516,1717467048726,-1500.0,0.00029952,2]
[328501517,1717467048735,-150.05389773,0.00029954,2]
[328501518,1717467048744,-150.0,0.0002997,2]
[328501519,1717467048753,-300.0,0.00029978,10]
[328501520,1717467048762,-211.322499,0.00029979,2]
[328501521,1717467048771,-211.322499,0.00029979,2]
[328501522,1717467048781,-151.0,0.00029979,7]
[328501523,1717467048790,-191.508578,0.00029979,7]
[328501524,1717467048798,-191.508578,0.00029979,7]
[328501525,1717467048808,-151.0,0.00029979,7]
[328501526,1717467048817,-151.0,0.00029979,7]
[328501527,1717467048827,-151.0,0.00029979,7]
[328501528,1717467048836,-282.59808,0.00029979,7]
[328501529,1717467048845,-151.0,0.00029979,7]
[328501530,1717467048855,-151.0,0.00029979,7]
[328501531,1717467048865,-151.0,0.00029979,7]
[328501532,1717467048874,-151.0,0.00029979,7]
[328501533,1717467048883,-151.0,0.00029979,7]
[328501534,1717467048892,-192.174074,0.00029979,7]
[328501535,1717467048902,-192.174074,0.00029979,7]
[328501536,1717467048911,-2653.8904064,0.00029979,2]
[328501537,1717467048920,-2407.3865913,0.00029979,2]
[328501538,1717467048929,-2160.8827762,0.00029979,2]
[328501539,1717467048938,-1914.3789612,0.00029979,2]
[328501540,1717467048947,-1667.8751461,0.00029979,2]
[328501541,1717467048957,-465.2860756,0.00029979,2]
[328501542,1717467048970,-422.0684685,0.00029979,2]
[328501543,1717467048979,-378.8508615,0.00029979,2]
[328501544,1717467048988,-335.6332544,0.00029979,2]
[328501545,1717467048997,-292.4156474,0.00029979,2]
[328501546,1717467049006,-169.1518294,0.00029979,2]
[328501547,1717467049016,-169.1518294,0.00029979,2]
[328501548,1717467049025,-169.1518294,0.00029979,2]
[328501549,1717467049034,-169.1518294,0.00029979,2]
[328501550,1717467049043,-169.1518294,0.00029979,2]
[328501551,1717467049052,-14818.9832008,0.00029979,2]
[328501552,1717467049061,-13442.5375549,0.00029979,2]
[328501553,1717467049070,-12066.091909,0.00029979,2]
[328501554,1717467049079,-10689.6462631,0.00029979,2]
[328501555,1717467049088,-9313.2006173,0.00029979,2]
[328501556,1717467049097,-281.326473,0.00029979,7]
[328501557,1717467049107,-3440.44732775,0.0002998,4]
[328501558,1717467049116,-150.0,0.00029982,2]
[328501559,1717467049125,-195.0,0.0002999,2]
[328501560,1717467049134,-200.0,0.0002999,7]
[328501561,1717467049143,-1500.0,0.00029991,2]
[328501562,1717467049152,-1500.0,0.00029992,2]
[328501563,1717467049161,-150.0,0.00029994,2]
[328501564,1717467049171,-151.0,0.00029997,7]
[328501565,1717467049180,-289.712624,0.00029997,7]
[328501566,1717467049189,-151.0,0.00029997,7]
[328501567,1717467049198,-292.048318,0.00029997,7]
[328501568,1717467049207,-196.055213,0.00029997,7]
[328501569,1717467049216,-305.368604,0.00029997,7]
[328501570,1717467049225,-305.368604,0.00029997,7]
[328501571,1717467049234,-151.0,0.00029997,7]
[328501572,1717467049243,-160.618898,0.00029997,7]
[328501573,1717467049252,-150.0,0.00029997,2]
[328501574,1717467049260,-151.0,0.00029997,7]
[328501575,1717467049270,-195.069437,0.00029997,7]
[328501576,1717467049279,-195.069437,0.00029997,7]
[328501577,1717467049288,-78022.95661791,0.00029997,2]
[328501578,1717467049298,-155.0,0.00029998,2]
[328501579,1717467049307,-162.40208222,0.00029998,2]
[328501580,1717467049315,-1272.21947396,0.00029998,2]
[328501581,1717467049325,-155.34271327,0.00029998,2]
[328501582,1717467049334,-282.99832401,0.00029998,2]
[328501583,1717467049343,-155.08952726,0.00029998,2]
[328501584,1717467049352,-2992.17424262,0.00029998,2]
[328501585,1717467049362,-8750.84928777,0.00029998,2]
[328501586,1717467049371,-895.17015095,0.00029998,2]
[328501587,1717467049380,-163.47046156,0.00029998,2]
[328501588,1717467049389,-346.92042585,0.00029998,2]
[328501589,1717467049399,-155.4878975,0.00029998,2]
[328501590,1717467049408,-2904.48502727,0.00029998,2]
[328501591,1717467049417,-190.81709269,0.00029998,2]
[328501592,1717467049426,-584.63269366,0.00029998,2]
[328501593,1717467049436,-6503.72,0.00029999,2]
[328501594,1717467049445,-150.0,0.00029999,7]
[328501595,1717467049454,-150.0,0.00029999,7]
[328501596,1717467049463,-158.78923891,0.00029999,7]
[328501597,1717467049473,-300.0,0.00029999,2]
[328501598,1717467049482,-1704.41775944,0.0003,5]
[328501599,1717467049491,-157862.18842759,0.0003,2]
[328501600,1717467049500,-2181.29187519,0.0003,10]
[328501601,1717467049509,-157.76857244,0.0003,14]
[328501602,1717467049519,-1232.66336223,0.0003,4]
[328501603,1717467049528,-5698.34718129,0.0003,2]
[328501604,1717467049537,-11916.60964419,0.0003,2]
[328501605,1717467049546,-17564.77944135,0.0003,2]
[328501606,1717467049556,-4711320.41332817,0.0003,2]
[328501607,1717467050063,-825.99835523,0.0003,2]
[328501608,1717467050075,-708.505,0.0003,2]
[328501609,1717467050184,-281.326473,0.00023,7]
[328501610,1717467050193,-2121.61081511,0.0003,2]
[328501611,1717467050204,-3896.57759999,0.0003,2]
[328501612,1717467050216,-1150.71808709,0.0003,2]
[328501613,1717467050227,-165854.88705859,0.0003,2]
[328501614,1717467050379,-281.326473,0.00025692,7]
[328501615,1717467050389,-151.0,0.00026027,7]
[328501616,1717467050398,-151.0,0.00026027,7]
[328501617,1717467050407,-281.326473,0.00028111,7]
[328501618,1717467050416,-101611.40685988,0.0003,2]
[328501619,1717467050427,-604.33773141,0.0003,2]
[328501620,1717467050438,-1253.73407752,0.0003,2]
[328501621,1717467050449,-3003.89063051,0.0003,2]
[328501622,1717467050578,-281.326473,0.00029,7]
[328501623,1717467050588,-190.48539045,0.0002939,2]
[328501624,1717467050597,-187.73813555,0.000299,2]
[328501625,1717467050608,-600.35073879,0.000299,2]
[328501626,1717467050616,-281.326473,0.00029979,7]
[328501627,1717467050626,-1028.32278821,0.0003,2]
[328501628,1717467050640,-3971.234511,0.0003,2]
[328501629,1717467050651,-1201.17363636,0.0003,2]
[328501630,1717467051191,-994.19092379,0.00019929,2]
[328501631,1717467051202,-5.80907621,0.00019929,2]
[328501632,1717467051212,-1000.0,0.0002242,2]
[328501633,1717467051221,-2217.7073045,0.00024799,2]
[328501634,1717467051240,-680.44298611,0.00024799,2]
[328501635,1717467051252,-953.27445045,0.00024799,2]
[328501636,1717467051265,-121.03741746,0.00024799,2]
[328501637,1717467051275,-151.0,0.00026027,7]
[328501638,1717467051285,-470.37461345,0.00027633,2]
[328501639,1717467051294,-151.0,0.00028111,7]
[328501640,1717467051303,-151.0,0.00029,7]
[328501641,1717467051313,-552.59669846,0.000299,2]
[328501642,1717467051322,-341.10214128,0.0003,2]
[328501643,1717467051333,-3627.83852648,0.0003,2]
[328501644,1717467051344,-12840.82856525,0.0003,2]
[328501645,1717467051355,-769.05650803,0.0003,2]
[328501646,1717467051366,-417.50900005,0.0003,2]
[328501647,1717467051377,-500.0,0.0003,2]
[328501648,1717467051388,-295.12565298,0.0003,2]
[328501649,1717467051399,-491.92205385,0.0003,2]
[328501650,1717467051410,-385.86354147,0.0003,2]
[328501651,1717467051421,-351.22370167,0.0003,2]
[328501652,1717467051431,-555.75450068,0.0003,2]
[328501653,1717467051443,-237261.24464395,0.0003,2]
[328501654,1717467051454,-605.50432414,0.0003,2]
[328501655,1717467051467,-2008.08521587,0.0003,2]
[328501656,1717467051478,-1156.73114175,0.0003,2]
[328501657,1717467051497,-729.0,0.0003,2]
[328501658,1717467051508,-1900.443,0.0003,2]
[328501659,1717467051519,-3485.35213384,0.0003,2]
[328501660,1717467051530,-11191.49407891,0.0003,2]
[328501661,1717467051541,-644.05,0.0003,2]
[328501669,1717467405656,2000.0,0.000309,30]
[328501675,1717467450810,1370.0,0.00031,30]
[328501676,1717467579230,-1228.58000281,0.00017158,2]
[328501677,1717467579253,-161.42524248,0.00017159,2]
[328501678,1717467579276,-1105.44783704,0.00017259,2]
[328501679,1717467601152,11504.54691767,0.00017259,2]
[328501680,1717467693900,-26054.81783841,0.00017259,2]
[328501681,1717467693923,-1046.18219115,0.00017259,2]
[328501682,1717467693945,-1041.80097141,0.00017259,2]
[328501683,1717467707219,1857.19899903,0.00017259,2]
[328501684,1717467888704,-156.53474472,0.00017158,2]
[328501685,1717467888728,-161.42524248,0.00017159,2]
[328501686,1717467888755,-35702.16575705,0.00017259,2]
[328501687,1717467888780,-1041.80097141,0.00017259,2]